bitfinex-derivatives/quotes_ETHF0:USTF0_20210111
["timestamp","ask_amount","ask_price","bid_price","bid_amount"]
[1610374692528,1.923,983.67,981.51,4.00959]
[1610374692728,2.286,984.32,981.51,5.77759]
[1610374693728,1.5953,984.48,981.51,5.77759]
[1610374694433,1.5953,984.48,983.83,4.00959]
[1610374694631,4.00959,985.43,983.83,6.29959]
[1610374695731,347.928,1004.7,983.83,6.29959]
[1610374695934,6.0172,994.86,983.83,6.29959]
[1610374696533,6.0172,994.86,983.83,2.29]
[1610374696534,4.00959,987.54,983.83,2.29]
[1610374696736,6.07359,987.54,983.83,2.29]
[1610374696935,5.01759,987.54,983.83,2.29]
[1610374697135,4.70219,987.54,983.83,2.29]
[1610374698138,4.70219,987.54,981.51,1.768]
[1610374698337,4.70219,987.54,977.92,0.31541565]
[1610374698537,2.064,987.54,983.57,4.00959]
[1610374698739,2.064,987.54,983.57,5.83759]
[1610374698940,2.064,987.54,983.57,1.828]
[1610374699740,2.064,987.54,983.58,2.0204]
[1610374699940,1.7486,987.54,983.58,2.0204]
[1610374700140,5.92,994.86,983.58,2.0204]
[1610374700340,5.92,994.86,987.54,3.9439]
[1610374700541,4.00959,987.55,987.54,3.9439]
[1610374700940,4.00959,987.55,983.57,1.828]
[1610374701543,5.79959,987.55,983.58,2.0357]
[1610374702445,5.79959,987.55,986.66,4.00959]
[1610374702446,4.00959,987.15,986.66,4.00959]
[1610374702643,5.57859,987.15,983.57,1.828]
[1610374702845,1.67,988.05,983.57,1.828]
[1610374703045,75.4248,988.22,983.57,1.828]
[1610374703255,23.89489975,995.75,987.55,0.3154]
[1610374703446,5.9802,994.76,985.41,1.965]
[1610374703650,2.5944,988.57,986.05,2.219]
[1610374704461,4.00959,987.99,987.39,4.00959]
[1610374704671,1.988,987.99,987.39,4.00959]
[1610374704874,5.9802,994.76,987.4,2.0538]
[1610374705048,1.503,989.86,987.4,4.3458]
[1610374705257,5.9802,994.76,987.4,4.3458]
[1610374705461,76.5087,989.58,987.4,4.3458]
[1610374705861,78.6687,989.58,987.4,4.3458]
[1610374706056,2.16,989.58,987.4,4.3458]
[1610374706261,0.368,989.86,987.4,4.3458]
[1610374706468,0.1317,989.58,987.4,4.3458]
[1610374706660,15.42799333,989.68,987.4,2.292]
[1610374707152,15.42799333,989.68,989.58,1.114]
[1610374707352,11.54199333,989.68,987.4,2.292]
[1610374707752,0.368,989.86,986.05,2.219]
[1610374708351,19.39243565,989.35,986.05,2.219]
[1610374708552,19.39243565,989.35,981.29,6.4079]
[1610374708553,19.39243565,989.35,986.71,4.00959]
[1610374708751,20.92343565,989.35,986.71,4.00959]
[1610374708952,9.82913565,989.35,986.71,4.00959]
[1610374709353,6.85503565,989.35,986.71,4.00959]
[1610374709553,5.30963565,993.69,986.71,4.00959]
[1610374709755,5.30963565,993.69,986.72,2.0386]
[1610374710454,26.50502743,1003.9,986.72,2.0386]
[1610374710655,26.50502743,1003.9,989.64,4.00959]
[1610374710656,4.00959,990.68,989.64,4.00959]
[1610374710855,6.27359,990.68,986.66,2.105]
[1610374711757,6.27359,990.68,986.67,2.0075]
[1610374711961,2.264,990.68,986.67,2.0075]
[1610374712162,2.264,990.68,986.67,3.7325]
[1610374712363,1.0927,990.68,986.67,3.7325]
[1610374712563,3.63769,991.62,990.67,4.00959]
[1610374712761,3.63769,991.62,989.26,1.982]
[1610374712962,5.94969,991.62,989.26,1.982]
[1610374713362,5.94969,991.62,986.67,1.725]
[1610374713563,2.312,991.62,986.67,1.725]
[1610374713762,2.312,991.62,986.68,2.0264]
[1610374714164,2.312,991.62,986.12,2.393]
[1610374714869,2.312,991.62,978.74,0.31497024]
[1610374715064,2.312,991.62,978.75,2.0491]
[1610374715266,2.312,991.62,978.75,3.8331]
[1610374716368,2.312,991.62,978.87,0.31513747]
[1610374716569,4.00959,990.3,989.57,4.00959]
[1610374716769,5.73159,990.3,978.85,30.0]
[1610374716969,5.73159,990.3,979.09,0.62988011]
[1610374717169,5.73159,990.3,979.09,2.38288011]
[1610374717371,5.73159,990.3,979.13,0.31498121]
[1610374717568,5.73159,990.3,979.09,1.753]
[1610374717769,5.73159,990.3,979.1,2.0421]
[1610374718169,5.73159,990.3,979.18,0.31494066]
[1610374718577,4.00959,984.04,983.3,4.00959]
[1610374718771,2.447,984.04,983.3,4.00959]
[1610374719172,2.447,984.04,979.18,0.31494066]
[1610374719672,2.447,984.04,979.19,2.0147]
[1610374720072,0.9191,984.04,979.19,2.0147]
[1610374720272,5.8991,990.29,979.19,2.0147]
[1610374720674,4.00959,986.29,985.34,4.00959]
[1610374720873,6.18159,986.29,979.18,0.31494066]
[1610374721074,2.172,986.29,979.18,0.31494066]
[1610374721273,0.6024,986.29,979.18,0.31494066]
[1610374721473,5.8991,990.29,979.18,0.31494066]
[1610374721674,2.152,986.29,979.18,0.31494066]
[1610374721873,1.5351,986.29,980.65,81.7543]
[1610374722075,1.1374,986.29,980.65,83.2773]
[1610374722576,1.1374,986.29,985.55,4.00959]
[1610374722577,4.00959,986.09,985.55,4.00959]
[1610374722773,5.54259,986.09,985.55,4.00959]
[1610374722976,1.0762,986.09,985.56,1.9988]
[1610374723177,0.0051,986.09,985.56,1.9988]
[1610374723377,74.1949,987.42,985.56,1.9988]
[1610374724379,74.1949,987.42,984.95,2.413]
[1610374724579,4.00959,986.97,986.07,4.00959]
[1610374724780,6.29559,986.97,986.07,4.00959]
[1610374724984,1.29559,986.97,986.07,4.00959]
[1610374725181,75.99879,987.42,986.07,4.00959]
[1610374725380,74.6092,986.69,986.07,4.00959]
[1610374725581,76.5442,986.69,986.07,4.00959]
[1610374725780,76.5442,986.69,986.08,2.0178]
[1610374725980,76.5442,986.69,986.07,4.00959]
[1610374726181,76.5442,986.69,984.57,1.844]
[1610374726380,76.5442,986.69,983.86,1.764]
[1610374726580,4.00959,984.48,984.01,4.00959]
[1610374726781,1.83,984.53,984.01,4.00959]
[1610374726980,1.611,984.53,984.02,2.0023]
[1610374727183,0.7282,984.53,984.02,2.0023]
[1610374727982,0.7282,984.53,983.56,59.6031]
[1610374728181,1.783,984.79,982.25,1.711]
[1610374728182,1.0394,984.79,982.25,1.711]
[1610374728580,4.00959,982.26,982.25,1.711]
[1610374728783,5.74159,982.26,979.1,6.3902]
[1610374728980,5.74159,982.26,979.11,2.0699]
[1610374729181,5.74159,982.26,979.11,4.3319]
[1610374729783,1.732,982.26,979.11,4.3319]
[1610374730581,4.00959,981.6,981.13,4.00959]
[1610374731183,4.00959,981.6,979.11,2.262]
[1610374731381,13.00329,981.6,979.11,2.262]
[1610374731583,5.6204,981.6,979.11,2.262]
[1610374731783,2.127,982.0,979.12,2.0683]
[1610374731985,6.3259,998.93,979.12,2.0683]
[1610374732182,6.3259,998.93,981.6,4.1341]
[1610374732383,6.3259,998.93,981.6,6.5431]
[1610374732586,4.00959,983.19,982.16,4.00959]
[1610374732785,2.327,984.49,982.16,4.00959]
[1610374732986,2.327,984.49,982.16,6.35959]
[1610374734788,4.00959,982.58,982.36,4.00959]
[1610374734987,0.817,984.49,982.36,4.00959]
[1610374735188,0.817,984.49,982.36,6.18959]
[1610374735390,30.0,998.39,982.36,6.18959]
[1610374735591,76.3198,983.67,982.36,6.18959]
[1610374736388,2.059,984.55,982.36,6.18959]
[1610374736788,2.059,984.55,984.04,4.00959]
[1610374736988,81.6046,985.54,984.05,2.0362]
[1610374737188,81.6046,985.54,983.82,2.223]
[1610374737387,83.5046,985.54,983.82,2.223]
[1610374737690,71.2607,985.54,983.82,2.223]
[1610374737889,74.4799,986.31,983.82,2.223]
[1610374738091,73.0154,986.31,983.82,2.223]
[1610374738289,73.0154,986.31,983.83,2.0604]
[1610374738690,4.00959,986.02,985.85,4.00959]
[1610374738891,73.0154,986.31,985.85,4.00959]
[1610374739092,2.486,986.95,985.85,6.37959]
[1610374739790,69.7444,987.88,985.86,2.0261]
[1610374741191,68.2734,987.88,985.85,2.37]
[1610374742692,4.00959,987.36,986.89,4.00959]
[1610374742892,1.603,988.02,987.88,0.3175]
[1610374743094,12.3761,988.85,987.88,2.6035]
[1610374744296,10.8816,988.85,987.88,0.3175]
[1610374744698,4.00959,987.89,986.67,1.933]
[1610374744897,5.72259,987.89,986.67,1.933]
[1610374745600,5.72259,987.89,986.67,0.3715]
[1610374746198,5.72259,987.89,985.85,2.37]
[1610374746398,5.72259,987.89,978.04,0.3152517]
[1610374746598,30.0,999.56,978.04,0.3152517]
[1610374746798,30.0,999.56,977.94,0.6305034]
[1610374746799,33.995,998.93,982.0,2.8848]
[1610374746998,35.768,998.93,982.0,2.8848]
[1610374747198,35.768,998.93,998.7,1.4734]
[1610374747398,35.768,998.93,986.83,1.546]
[1610374748799,4.00959,987.83,986.92,4.00959]
[1610374749001,1.547,988.06,986.83,1.546]
[1610374749201,35.768,998.93,986.83,1.546]
[1610374749403,0.3154,997.81,986.83,1.546]
[1610374749601,2.5704,997.81,986.83,1.546]
[1610374750002,70.0334,989.59,986.83,1.546]
[1610374750201,2.081,989.59,986.83,1.546]
[1610374750803,2.081,989.59,987.37,4.00959]
[1610374751403,2.081,989.59,987.37,5.59259]
[1610374752523,2.081,989.59,986.61,1.633]
[1610374752705,4.00959,988.05,987.28,4.00959]
[1610374752918,5.88559,988.05,986.61,1.633]
[1610374753110,5.88559,988.05,986.96,0.6]
[1610374753312,4.39639,988.05,986.96,0.6]
[1610374754608,5.9242,988.04,986.96,0.6]
[1610374754808,5.9242,988.04,987.44,4.00959]
[1610374755007,5.9242,988.04,986.96,0.6]
[1610374756409,3.9394,988.04,986.96,0.6]
[1610374756808,3.9394,988.04,988.03,4.00959]
[1610374757008,3.9394,988.04,988.03,5.99259]
[1610374757409,1.897,989.29,988.03,5.99259]
[1610374757810,2.081,989.59,988.03,5.99259]
[1610374758011,6.1128,997.8,988.03,5.99259]
[1610374758712,4.00959,990.9,990.42,4.00959]
[1610374758911,6.45659,990.9,990.42,4.00959]
[1610374759314,2.447,990.9,990.42,4.00959]
[1610374760210,2.447,990.9,988.04,0.4]
[1610374760712,4.00959,989.95,988.78,4.00959]
[1610374761114,1.552,991.13,988.78,4.00959]
[1610374761314,1.552,991.13,988.78,5.83559]
[1610374762814,4.00959,990.92,990.2,4.00959]
[1610374763014,2.01419,990.92,988.78,1.826]
[1610374763414,6.1128,997.8,988.78,1.826]
[1610374764816,4.00959,992.17,991.31,4.00959]
[1610374765015,1.558,992.17,991.31,4.00959]
[1610374765915,0.0874,992.17,991.31,4.00959]
[1610374766815,0.0874,992.17,992.16,4.00959]
[1610374767615,6.1644,996.22,992.16,6.18759]
[1610374768316,5.9922,996.21,992.16,2.178]
[1610374768516,7.8372,996.21,992.16,2.178]
[1610374768718,4.00959,992.81,992.58,4.00959]
[1610374768918,2.28,992.81,992.58,4.00959]
[1610374769118,2.1926,992.81,992.58,4.00959]
[1610374769718,2.038,993.03,992.58,4.00959]
[1610374770518,2.168,993.48,992.58,4.00959]
[1610374770719,6.0771,996.2,993.47,4.00959]
[1610374771321,6.0771,996.2,993.47,6.37659]
[1610374772320,5.9897,996.2,993.47,6.37659]
[1610374772721,5.9897,996.2,996.14,4.00959]
[1610374772921,5.9897,996.2,993.47,2.367]
[1610374773121,5.9897,996.2,994.15,1.77]
[1610374774823,5.9897,996.2,996.19,4.00959]
[1610374775032,0.9898,996.2,996.19,4.00959]
[1610374775427,4.4903,996.21,996.19,4.00959]
[1610374777526,0.647,996.21,996.19,4.00959]
[1610374777726,4.00959,999.03,996.19,4.00959]
[1610374778327,57.9427,998.88,996.19,4.00959]
[1610374778528,1.921,998.88,996.19,4.00959]
[1610374778930,1.921,998.88,997.84,4.00959]
[1610374780730,33.995,1008.3,997.84,4.00959]
[1610374780930,4.00959,1000.4,998.87,4.00959]
[1610374781130,5.66659,1000.4,998.87,4.00959]
[1610374781531,4.19359,1000.4,996.66,2.287]
[1610374781728,3.93969,1000.4,996.66,2.287]
[1610374782129,33.995,1008.3,1000.4,0.80631]
[1610374782331,33.995,1008.3,997.54,2.1791]
[1610374782529,35.9803,1008.3,997.54,2.1791]
[1610374782929,4.00959,1000.1,999.36,4.00959]
[1610374783128,5.57459,1000.1,999.36,4.00959]
[1610374783730,5.57459,1000.1,997.54,2.1791]
[1610374784429,1.565,1000.1,997.54,2.1791]
[1610374784829,3.90589,1000.5,1000.0,4.00959]
[1610374785030,3.90589,1000.5,998.86,1.516]
[1610374785232,5.65089,1000.5,998.86,1.516]
[1610374786935,4.00959,999.81,999.16,4.00959]
[1610374787134,5.76059,999.81,999.16,4.00959]
[1610374787734,1.745,1000.5,999.16,4.00959]
[1610374787934,1.499,999.81,999.16,4.00959]
[1610374788135,1.816,999.81,999.16,4.00959]
[1610374788834,2.1002,1000.1,999.81,3.184]
[1610374789737,2.1002,1000.1,998.21,74.3361]
[1610374790838,2.1002,1000.1,998.62,4.00959]
[1610374791238,0.5857,1000.1,998.62,4.00959]
[1610374791438,0.5857,1000.1,998.21,74.3361]
[1610374791939,2.232,1001.0,998.21,74.3361]
[1610374792142,2.232,1001.0,998.21,76.1231]
[1610374792941,2.232,1001.0,1000.4,4.00959]
[1610374793343,2.232,1001.0,998.59,1.8999]
[1610374794245,0.7147,1001.0,998.21,76.1231]
[1610374794544,0.7147,1001.0,998.21,74.3361]
[1610374794943,0.7147,1001.0,998.96,4.00959]
[1610374795144,0.7147,1001.0,998.21,74.3361]
[1610374795544,0.7147,1001.0,997.95,67.9722]
[1610374796246,71.9016,1002.5,1001.0,4.2853]
[1610374796446,71.9016,1002.5,998.85,2.3152]
[1610374796646,74.1634,1002.5,998.85,2.3152]
[1610374797047,4.00959,1002.3,1002.0,4.00959]
[1610374797245,2.2618,1002.5,999.22,70.3724]
[1610374797446,0.7388,1002.5,999.22,72.1961]
[1610374799047,4.00959,1002.1,999.22,72.1961]
[1610374799248,5.79859,1002.1,999.22,72.1961]
[1610374800349,1.789,1002.1,999.22,72.1961]
[1610374800550,1.7863,1002.1,999.44,71.6716]
[1610374800753,1.7863,1002.1,999.44,73.9359]
[1610374800950,1.7863,1002.1,1001.7,4.00959]
[1610374801149,1.7863,1002.1,999.44,73.9359]
[1610374801749,1.7863,1002.1,999.44,71.6716]
[1610374803053,1.7863,1002.1,998.31,72.981]
[1610374803754,59.8747,1002.4,998.31,72.981]
[1610374803953,72.1708,1001.3,997.75,1.5672]
[1610374804153,74.3928,1001.3,997.75,1.5672]
[1610374805054,4.00959,999.3,998.06,4.00959]
[1610374805254,5.59259,999.3,998.06,4.00959]
[1610374805854,1.583,999.3,997.75,1.5672]
[1610374806955,0.0133,999.3,999.29,4.00959]
[1610374807158,61.6858,1000.8,999.29,4.00959]
[1610374807556,61.6858,1000.8,999.29,5.61609]
[1610374808959,61.6858,1000.8,998.64,1.956]
[1610374809157,64.1448,1000.8,998.64,1.956]
[1610374810862,64.1448,1000.8,997.75,1.5672]
[1610374811060,64.1448,1000.8,999.57,4.00959]
[1610374811660,64.1448,1000.8,997.82,2.2155]
[1610374812963,64.1448,1000.8,999.42,4.00959]
[1610374813364,2.459,1000.8,998.14,71.579]
[1610374814262,2.055,1000.8,998.14,71.579]
[1610374815063,2.055,1000.8,998.16,4.00959]
[1610374815462,2.055,1000.8,998.16,6.05859]
[1610374816464,6.3686,1006.3,998.16,6.05859]
[1610374817064,4.00959,1003.4,998.16,2.049]
[1610374817265,5.58349,1003.4,998.16,2.049]
[1610374817864,5.07679,1003.4,998.16,2.049]
[1610374818065,11.06959,1003.4,998.16,2.049]
[1610374818266,11.06959,1003.4,998.75,73.4526]
[1610374818466,7.73989,1003.4,998.75,74.9942]
[1610374818667,7.5667,1003.4,998.75,74.9942]
[1610374818866,6.65989,1003.4,998.75,74.9942]
[1610374819067,6.65989,1003.4,1000.2,4.00959]
[1610374819466,5.15069,1003.4,1000.2,4.00959]
[1610374821068,5.15069,1003.4,1002.5,4.00959]
[1610374821268,5.06729,1003.4,1002.5,4.00959]
[1610374822671,3.56159,1003.4,1002.5,4.00959]
[1610374823069,3.56159,1003.4,1003.3,4.00959]
[1610374823269,3.56159,1003.4,1002.1,1.5647]
[1610374823470,5.08709,1003.4,1002.1,1.5647]
[1610374824670,3.56159,1003.4,1002.1,1.5647]
[1610374825070,3.56159,1003.4,1003.3,4.00959]
[1610374825672,2.05209,1003.4,1003.3,6.47929]
[1610374826572,2.05209,1003.4,1003.3,4.00959]
[1610374826772,2.05209,1003.4,1002.8,2.4715]
[1610374826972,2.05209,1003.4,1002.8,4.00959]
[1610374827475,2.0126,1003.6,1002.8,4.00959]
[1610374828573,205.092,1019.3,1002.8,4.00959]
[1610374828774,136.573,1027.4,1002.8,4.00959]
[1610374828973,4.00959,1006.4,1002.7,2.1616]
[1610374829173,5.56129,1006.4,1002.7,2.1616]
[1610374829572,5.44609,1006.4,1002.7,2.1616]
[1610374829773,2.44609,1006.4,1002.7,2.1616]
[1610374830975,4.00959,1005.4,1005.1,4.00959]
[1610374831175,5.87909,1005.4,1002.7,2.1616]
[1610374831376,1.8695,1005.4,1002.7,2.1616]
[1610374831775,1.5517,1006.4,1005.4,0.0152]
[1610374831979,0.4498,1006.4,1005.4,0.0152]
[1610374832980,0.4498,1006.4,1006.0,4.00959]
[1610374833182,0.4498,1006.4,1005.4,0.0152]
[1610374834582,0.4498,1006.4,1004.3,1.7551]
[1610374834981,4.45939,1006.4,1005.4,4.00959]
[1610374835181,3.02939,1006.4,1005.4,4.00959]
[1610374835982,3.02939,1006.4,1004.6,2.4637]
[1610374836184,5.36149,1006.4,1004.6,2.4637]
[1610374836384,5.36149,1006.4,1004.3,1.7551]
[1610374836582,5.36149,1006.4,1003.8,1.9798]
[1610374836983,4.00959,1005.2,1004.6,4.00959]
[1610374837184,1.8462,1005.2,1004.6,4.00959]
[1610374838087,0.2966,1005.2,1004.6,4.00959]
[1610374838287,0.2966,1005.2,1002.7,2.1616]
[1610374838486,0.2966,1005.2,996.31,0.30926511]
[1610374839085,4.00959,1004.7,1004.0,4.00959]
[1610374839286,5.77439,1004.7,1004.0,4.00959]
[1610374839485,0.2966,1005.2,1004.0,4.00959]
[1610374839690,2.0505,1004.7,1004.0,4.00959]
[1610374840886,2.3321,1006.4,1004.0,4.00959]
[1610374841085,2.0856,1005.1,1004.0,1.9594]
[1610374841285,2.0856,1005.1,1004.7,5.3113]
[1610374841486,0.5046,1005.1,1004.7,5.3113]
[1610374842085,0.9802,1008.3,1004.7,5.3113]
[1610374842289,39.0,1019.5,1004.7,5.3113]
[1610374842487,72.995,1019.5,1004.7,5.3113]
[1610374843087,4.00959,1005.9,1005.1,4.00959]
[1610374843288,2.2175,1005.9,1005.1,4.00959]
[1610374844388,0.7522,1005.9,1005.1,4.00959]
[1610374844988,0.7522,1005.9,1005.4,4.00959]
[1610374845388,63.2314,1007.7,1005.4,4.00959]
[1610374845799,63.2314,1007.7,1005.1,2.0944]
[1610374845989,65.3857,1007.7,1005.1,2.0944]
[1610374846995,4.00959,1005.7,1004.8,4.00959]
[1610374847194,2.3775,1005.7,1004.7,5.3113]
[1610374847391,0.8965,1005.7,1004.7,5.3113]
[1610374848191,2.322,1006.1,1004.7,5.3113]
[1610374848392,2.322,1006.1,1004.7,6.9705]
[1610374848992,2.322,1006.1,1005.8,4.00959]
[1610374849392,5.9558,1007.6,1005.8,4.00959]
[1610374850693,4.378,1007.6,1005.8,4.00959]
[1610374850892,4.378,1007.6,1005.8,5.62189]
[1610374851092,4.378,1007.6,1007.5,4.00959]
[1610374852393,4.378,1007.6,1006.9,2.3733]
[1610374852993,4.378,1007.6,1007.5,4.00959]
[1610374853796,2.8916,1007.6,1007.5,4.00959]
[1610374855300,2.8916,1007.6,1007.5,6.18119]
[1610374856805,1.3925,1007.6,1007.5,6.18119]
[1610374857903,4.00959,1009.6,1007.5,6.18119]
[1610374859106,4.00959,1009.6,1008.8,4.00959]
[1610374859304,4.00959,1009.6,1008.4,2.1368]
[1610374859506,5.64359,1009.6,1008.4,2.1368]
[1610374860105,4.06739,1009.6,1008.4,2.1368]
[1610374860504,4.06739,1009.6,1007.6,0.2]
[1610374861105,4.00959,1009.0,1008.8,4.00959]
[1610374861506,5.84689,1009.0,1008.8,4.00959]
[1610374861908,5.53019,1009.0,1008.8,4.00959]
[1610374862208,1.8373,1009.0,1008.8,4.00959]
[1610374862608,1.8373,1009.0,1007.6,0.2]
[1610374863208,1.8373,1009.0,1008.8,4.00959]
[1610374863209,0.3141,1009.0,1008.8,4.00959]
[1610374863809,0.1141,1009.0,1008.1,1.9411]
[1610374864711,1.5205,1009.3,1008.1,1.9411]
[1610374865110,4.00959,1009.1,1008.7,4.00959]
[1610374865309,5.8302,1009.8,1008.7,4.00959]
[1610374865510,5.8302,1009.8,1008.7,6.21859]
[1610374865709,5.8302,1009.8,1009.0,0.2]
[1610374865909,5.8302,1009.8,1009.0,2.5916]
[1610374866411,4.3066,1009.8,1009.0,2.5916]
[1610374867113,8.31619,1009.8,1009.2,4.00959]
[1610374867713,8.31619,1009.8,1009.0,2.5916]
[1610374867913,8.11493015,1009.8,1009.0,2.5916]
[1610374869214,58.0293,1010.6,1009.0,2.5916]
[1610374869615,81.5836,1011.3,1009.0,2.5916]
[1610374871115,4.00959,1010.4,1009.7,4.00959]
[1610374871315,81.5836,1011.3,1009.7,4.00959]
[1610374871515,81.5836,1011.3,1009.7,1.7976]
[1610374872416,80.1218,1011.3,1009.7,1.7976]
[1610374873117,4.00959,1010.8,1010.0,4.00959]
[1610374873519,4.00959,1010.8,1009.7,1.7976]
[1610374875123,4.00959,1010.6,1010.1,4.00959]
[1610374875522,2.0954,1011.8,1010.1,4.00959]
[1610374875721,0.5203,1011.8,1010.1,6.39149]
[1610374875925,78.3264,1012.2,1010.1,6.39149]
[1610374876625,72.0075,1012.2,1010.1,6.39149]
[1610374877224,72.0075,1012.2,1011.1,4.00959]
[1610374877424,72.0075,1012.2,1011.1,6.04509]
[1610374878024,72.0075,1012.2,1011.1,2.0355]
[1610374879025,60.2369,1011.7,1011.1,2.0355]
[1610374881125,60.2369,1011.7,1011.5,4.00959]
[1610374881325,60.2369,1011.7,1011.5,5.71409]
[1610374881527,70.3178,1012.9,1011.5,1.7045]
[1610374881927,68.8051,1012.9,1011.5,1.7045]
[1610374883126,4.00959,1012.2,1012.0,4.00959]
[1610374883329,68.8051,1012.9,1012.0,4.00959]
[1610374883527,68.8051,1012.9,1012.0,1.5663]
[1610374883726,68.8051,1012.9,1011.1,2.0355]
[1610374883928,6.3208,1013.8,1010.1,2.3819]
[1610374884127,6.3208,1013.8,1004.3,0.30680128]
[1610374884327,2.0494,1013.9,1010.1,2.155]
[1610374885128,0.5611,1013.9,1010.1,2.155]
[1610374885330,4.00959,1011.1,1010.1,2.155]
[1610374885728,73.1175,1011.4,1010.1,2.155]
[1610374887231,4.00959,1011.3,1010.9,4.00959]
[1610374887434,73.1175,1011.4,1010.9,4.00959]
[1610374887631,73.1175,1011.4,1010.9,6.24829]
[1610374888132,56.3513,1012.5,1010.9,2.2387]
[1610374889235,4.00959,1012.4,1011.1,4.00959]
[1610374889434,56.3513,1012.5,1011.1,4.00959]
[1610374891042,5.8944,1013.1,1011.1,4.00959]
[1610374891239,4.3488,1013.1,1012.7,4.00959]
[1610374891440,4.3488,1013.1,1012.7,5.85309]
[1610374891839,4.3488,1013.1,1012.7,1.8435]
[1610374893341,4.3488,1013.1,1013.0,4.00959]
[1610374893547,4.3488,1013.1,1013.0,6.26899]
[1610374894442,2.8174,1013.1,1013.0,6.26899]
[1610374895043,4.00959,1014.8,1013.1,2.1826]
[1610374895244,6.24,1026.0,1014.7,4.00959]
[1610374895447,40.235,1026.0,1014.7,6.40229]
[1610374895643,6.24,1026.0,1014.7,6.40229]
[1610374896244,63.995,1027.8,1014.7,6.40229]
[1610374896646,6.0669,1027.7,1014.7,6.40229]
[1610374896844,42.36,1027.7,1014.7,6.40229]
[1610374897246,42.36,1027.7,1015.9,4.00959]
[1610374897446,42.36,1027.7,1022.6,1.5059]
[1610374897645,42.36,1027.7,1015.9,5.55229]
[1610374897845,36.2931,1027.7,1016.4,2.4297]
[1610374898047,6.1067,1027.6,1016.4,2.4297]
[1610374899247,4.00959,1018.9,1018.8,4.00959]
[1610374899449,4.00959,1018.9,1016.4,2.4297]
[1610374900548,2.4391,1019.3,1016.4,2.4297]
[1610374901348,4.00959,1019.3,1018.7,4.00959]
[1610374901550,6.2224,1027.6,1018.7,5.64639]
[1610374903252,4.00959,1020.6,1019.3,4.00959]
[1610374903652,4.26429,1020.6,1018.7,1.6368]
[1610374904954,1.7674,1020.6,1018.7,1.6368]
[1610374905354,1.7674,1020.6,1020.0,4.00959]
[1610374905954,1.7674,1020.6,1019.0,1.7059]
[1610374906756,0.2993,1020.6,1019.0,1.7059]
[1610374907255,4.00959,1019.9,1019.2,4.00959]
[1610374907455,5.55209,1019.9,1019.2,4.00959]
[1610374908460,4.00959,1019.9,1019.2,4.00959]
[1610374908858,1.7866,1021.1,1019.2,4.00959]
[1610374909258,1.7866,1021.1,1020.0,4.00959]
[1610374909460,1.7866,1021.1,1020.0,5.62749]
[1610374909859,0.2894,1021.1,1020.0,5.62749]
[1610374910859,1.5873,1021.6,1020.0,5.62749]
[1610374911259,4.00959,1021.3,1021.0,4.00959]
[1610374912061,61.0316,1022.3,1021.0,4.00959]
[1610374912261,61.0316,1022.3,1021.0,6.14279]
[1610374912864,70.3134,1022.6,1021.0,6.14279]
[1610374913264,4.00959,1022.0,1021.8,4.00959]
[1610374913665,4.00959,1022.0,1021.0,2.1332]
[1610374914467,72.0156,1022.6,1021.0,2.1332]
[1610374914869,70.3134,1022.6,1021.0,2.1332]
[1610374915267,70.3134,1022.6,1022.5,4.00959]
[1610374915468,4.00959,1024.2,1022.5,5.84549]
[1610374916069,2.40539,1024.2,1022.5,5.84549]
[1610374916475,2.40539,1024.2,1022.5,4.00959]
[1610374916675,2.40539,1024.2,1021.7,2.3066]
[1610374916874,3.92729,1024.2,1021.7,2.3066]
[1610374917274,4.00959,1022.4,1021.6,4.00959]
[1610374917476,6.42829,1022.4,1021.0,2.1332]
[1610374917680,6.42829,1022.4,1020.0,1.6179]
[1610374917876,6.42829,1022.4,1021.6,60.6367]
[1610374918276,55.4385,1022.3,1020.8,1.809]
[1610374918478,61.6762,1022.3,1020.8,1.809]
[1610374918876,55.4385,1022.3,1020.8,1.809]
[1610374919277,4.00959,1021.8,1020.5,4.00959]
[1610374919478,5.55409,1021.8,1019.6,75.5793]